[Event "Titled Tuesday Blitz April 18 Late 2023"]
[White "Omranalhosani21"]
[Black "Schmidt, Harald"]
[BlackFideId "4648358"]
[WhiteElo "2562"]
[BlackElo "2173"]
[Result "1-0"]
[Round "01"]
[TimeControl "180+2"]
[Date "2023.04.18"]
[WhiteClock "0:01:39"]
[BlackClock "0:01:16"]

1. d4 {[%clk 0:02:59]}  Nf6 {[%clk 0:02:58]} 2. Nf3 {[%clk 0:02:59]}  g6 {[%clk 0:02:57]} 3. g3 {[%clk 0:02:59]}  Bg7 {[%clk 0:02:57]} 4. Bg2 {[%clk 0:02:58]}  O-O {[%clk 0:02:56]} 5. O-O {[%clk 0:02:59]}  c5 {[%clk 0:02:56]} 6. d5 {[%clk 0:02:56]}  b5 {[%clk 0:02:53]} 7. c4 {[%clk 0:02:55]}  bxc4 {[%clk 0:02:53]} 8. Nc3 {[%clk 0:02:55]}  Bb7 {[%clk 0:02:50]} 9. e4 {[%clk 0:02:55]}  d6 {[%clk 0:02:47]} 10. Nd2 {[%clk 0:02:55]}  Nfd7 {[%clk 0:02:34]} 11. Re1 {[%clk 0:02:51]}  Nb6 {[%clk 0:02:32]} 12. Bf1 {[%clk 0:02:43]}  e6 {[%clk 0:02:29]} 13. Nxc4 {[%clk 0:02:41]}  exd5 {[%clk 0:02:26]} 14. Nxd5 {[%clk 0:02:38]}  Bxd5 {[%clk 0:02:19]} 15. exd5 {[%clk 0:02:37]}  Nxc4 {[%clk 0:02:18]} 16. Bxc4 {[%clk 0:02:35]}  Nd7 {[%clk 0:02:19]} 17. Bf1 {[%clk 0:02:32]}  Rb8 {[%clk 0:02:18]} 18. Rb1 {[%clk 0:02:32]}  Ne5 {[%clk 0:02:17]} 19. Bg2 {[%clk 0:02:30]}  Qa5 {[%clk 0:02:15]} 20. a3 {[%clk 0:02:26]}  Rfe8 {[%clk 0:02:15]} 21. Bd2 {[%clk 0:02:25]}  Qb5 {[%clk 0:02:11]} 22. Bc3 {[%clk 0:02:20]}  Qb3 {[%clk 0:02:09]} 23. Qxb3 {[%clk 0:02:18]}  Rxb3 {[%clk 0:02:01]} 24. f4 {[%clk 0:02:18]}  Nf3+ {[%clk 0:01:41]} 25. Bxf3 {[%clk 0:02:18]}  Rxe1+ {[%clk 0:01:39]} 26. Rxe1 {[%clk 0:02:15]}  Bxc3 {[%clk 0:01:36]} 27. bxc3 {[%clk 0:02:15]}  Rxc3 {[%clk 0:01:36]} 28. Kg2 {[%clk 0:02:15]}  Rxa3 {[%clk 0:01:36]} 29. Re8+ {[%clk 0:02:15]}  Kg7 {[%clk 0:01:35]} 30. Rd8 {[%clk 0:02:16]}  c4 {[%clk 0:01:35]} 31. Rxd6 {[%clk 0:02:15]}  Rd3 {[%clk 0:01:35]} 32. Rc6 {[%clk 0:02:14]}  c3 {[%clk 0:01:34]} 33. Kf2 {[%clk 0:02:10]}  a5 {[%clk 0:01:33]} 34. Be4 {[%clk 0:02:07]}  Rd2+ {[%clk 0:01:29]} 35. Ke3 {[%clk 0:02:07]}  f5 {[%clk 0:01:29]} 36. Bd3 {[%clk 0:02:06]}  a4 {[%clk 0:01:25]} 37. Rxc3 {[%clk 0:02:04]}  Rxh2 {[%clk 0:01:25]} 38. d6 {[%clk 0:02:04]}  Kf6 {[%clk 0:01:25]} 39. Bc4 {[%clk 0:02:01]}  Rg2 {[%clk 0:01:22]} 40. Kd4 {[%clk 0:01:55]}  Rd2+ {[%clk 0:01:19]} 41. Rd3 {[%clk 0:01:52]}  Rxd3+ {[%clk 0:01:19]} 42. Kxd3 {[%clk 0:01:50]}  h6 {[%clk 0:01:17]} 43. Kd4 {[%clk 0:01:46]}  g5 {[%clk 0:01:17]} 44. Kc5 {[%clk 0:01:44]}  gxf4 {[%clk 0:01:16]} 45. gxf4 {[%clk 0:01:45]}  h5 {[%clk 0:01:16]} 46. Kc6 {[%clk 0:01:45]}  h4 {[%clk 0:01:16]} 47. d7 {[%clk 0:01:39]} 1-0


[Site "https://www.chess.com"]

[Event "Titled Tuesday Blitz April 18 Late 2023"]
[White "Florianovitz, Derlei Alex"]
[Black "Moral Garcia, Serafin"]
[WhiteFideId "2114178"]
[BlackFideId "2201925"]
[WhiteElo "1953"]
[BlackElo "2274"]
[Result "1-0"]
[Round "01"]
[TimeControl "180+2"]
[Date "2023.04.18"]
[WhiteClock "0:00:58"]
[BlackClock "0:01:14"]

1. e4 {[%clk 0:03:00]}  c5 {[%clk 0:02:39]} 2. Nf3 {[%clk 0:03:00]}  e6 {[%clk 0:02:38]} 3. d4 {[%clk 0:03:00]}  cxd4 {[%clk 0:02:39]} 4. Nxd4 {[%clk 0:03:00]}  Nc6 {[%clk 0:02:39]} 5. Nc3 {[%clk 0:03:01]}  Qc7 {[%clk 0:02:40]} 6. a3 {[%clk 0:02:59]}  a6 {[%clk 0:02:39]} 7. Be3 {[%clk 0:02:58]}  Nf6 {[%clk 0:02:38]} 8. Bd3 {[%clk 0:02:58]}  b5 {[%clk 0:02:35]} 9. O-O {[%clk 0:02:56]}  Ne5 {[%clk 0:02:32]} 10. h3 {[%clk 0:02:52]}  Bc5 {[%clk 0:02:30]} 11. Qe2 {[%clk 0:02:49]}  O-O {[%clk 0:02:27]} 12. Nb3 {[%clk 0:02:47]}  Bxe3 {[%clk 0:02:25]} 13. Qxe3 {[%clk 0:02:48]}  d6 {[%clk 0:02:25]} 14. f4 {[%clk 0:02:46]}  Nc4 {[%clk 0:02:19]} 15. Bxc4 {[%clk 0:02:45]}  Qxc4 {[%clk 0:02:19]} 16. Rad1 {[%clk 0:02:39]}  Bb7 {[%clk 0:02:19]} 17. e5 {[%clk 0:02:16]}  dxe5 {[%clk 0:02:16]} 18. fxe5 {[%clk 0:02:17]}  Nd5 {[%clk 0:02:12]} 19. Nxd5 {[%clk 0:02:16]}  Bxd5 {[%clk 0:02:11]} 20. Rf2 {[%clk 0:02:14]}  Rac8 {[%clk 0:02:03]} 21. Rd4 {[%clk 0:02:13]}  Qc6 {[%clk 0:02:00]} 22. Rg4 {[%clk 0:02:10]}  h5 {[%clk 0:01:16]} 23. Rxg7+ {[%clk 0:02:04]}  Kxg7 {[%clk 0:01:13]} 24. Qg5+ {[%clk 0:02:05]}  Kh7 {[%clk 0:01:14]} 25. Qxh5+ {[%clk 0:02:05]}  Kg7 {[%clk 0:01:14]} 26. Qg5+ {[%clk 0:01:52]}  Kh7 {[%clk 0:01:14]} 27. Rf4 {[%clk 0:01:46]}  Qc4 {[%clk 0:01:14]} 28. Nd4 {[%clk 0:00:58]} 1-0


[Site "https://www.chess.com"]

[Event "Titled Tuesday Blitz April 18 Late 2023"]
[White "Bayramov, Zaur"]
[Black "mjelcic"]
[WhiteFideId "13405080"]
[WhiteElo "2195"]
[BlackElo "2159"]
[Result "1-0"]
[Round "01"]
[TimeControl "180+2"]
[Date "2023.04.18"]
[WhiteClock "0:00:49"]
[BlackClock "0:00:09"]

1. e4 {[%clk 0:03:00]}  c5 {[%clk 0:02:59]} 2. Nf3 {[%clk 0:02:58]}  g6 {[%clk 0:03:00]} 3. h4 {[%clk 0:02:56]}  h5 {[%clk 0:02:58]} 4. Nc3 {[%clk 0:02:52]}  Nc6 {[%clk 0:02:57]} 5. Bc4 {[%clk 0:02:52]}  Bg7 {[%clk 0:02:50]} 6. d3 {[%clk 0:02:52]}  e6 {[%clk 0:02:49]} 7. Bg5 {[%clk 0:02:51]}  Nge7 {[%clk 0:02:49]} 8. Qd2 {[%clk 0:02:49]}  a6 {[%clk 0:02:38]} 9. a4 {[%clk 0:02:48]}  b6 {[%clk 0:02:38]} 10. Qf4 {[%clk 0:02:40]}  O-O {[%clk 0:01:30]} 11. Bf6 {[%clk 0:02:33]}  d6 {[%clk 0:01:21]} 12. Bxg7 {[%clk 0:02:33]}  Kxg7 {[%clk 0:01:21]} 13. g4 {[%clk 0:02:19]}  e5 {[%clk 0:01:22]} 14. Qe3 {[%clk 0:02:14]}  Bxg4 {[%clk 0:01:21]} 15. Nh2 {[%clk 0:02:13]}  Nd4 {[%clk 0:01:21]} 16. Qd2 {[%clk 0:02:10]}  Qd7 {[%clk 0:01:19]} 17. Nd1 {[%clk 0:02:00]}  b5 {[%clk 0:01:11]} 18. Ba2 {[%clk 0:02:00]}  f5 {[%clk 0:00:55]} 19. Rg1 {[%clk 0:01:46]}  fxe4 {[%clk 0:00:53]} 20. dxe4 {[%clk 0:01:44]}  Rf4 {[%clk 0:00:48]} 21. Ne3 {[%clk 0:01:21]}  Raf8 {[%clk 0:00:42]} 22. Nexg4 {[%clk 0:01:20]}  hxg4 {[%clk 0:00:42]} 23. f3 {[%clk 0:00:52]}  gxf3 {[%clk 0:00:31]} 24. O-O-O {[%clk 0:00:52]}  Ne2+ {[%clk 0:00:30]} 25. Kb1 {[%clk 0:00:52]}  Nxg1 {[%clk 0:00:29]} 26. Rxg1 {[%clk 0:00:52]}  f2 {[%clk 0:00:30]} 27. Rf1 {[%clk 0:00:52]}  Qh3 {[%clk 0:00:29]} 28. Qxd6 {[%clk 0:00:51]}  Rxe4 {[%clk 0:00:12]} 29. Qxe7+ {[%clk 0:00:51]}  Kh6 {[%clk 0:00:09]} 30. Qxf8+ {[%clk 0:00:50]}  Kh5 {[%clk 0:00:09]} 31. Qh8# {[%clk 0:00:49]} 1-0


[Site "https://www.chess.com"]

[Event "Titled Tuesday Blitz April 18 Late 2023"]
[White "Ahn, Hongjin"]
[Black "Vanek, Tomas"]
[WhiteFideId "13201492"]
[BlackFideId "313459"]
[WhiteElo "2182"]
[BlackElo "2052"]
[Result "1-0"]
[Round "01"]
[TimeControl "180+2"]
[Date "2023.04.18"]
[WhiteClock "0:01:50"]
[BlackClock "0:00:20"]

1. e4 {[%clk 0:02:58]}  c5 {[%clk 0:02:59]} 2. Nc3 {[%clk 0:02:55]}  Nc6 {[%clk 0:02:55]} 3. g3 {[%clk 0:02:54]}  g6 {[%clk 0:02:51]} 4. Bg2 {[%clk 0:02:54]}  Bg7 {[%clk 0:02:50]} 5. d3 {[%clk 0:02:54]}  e6 {[%clk 0:02:48]} 6. Nge2 {[%clk 0:02:54]}  Nge7 {[%clk 0:02:48]} 7. O-O {[%clk 0:02:54]}  d5 {[%clk 0:02:48]} 8. f4 {[%clk 0:02:54]}  d4 {[%clk 0:02:43]} 9. Nb1 {[%clk 0:02:53]}  e5 {[%clk 0:02:33]} 10. Nd2 {[%clk 0:02:51]}  Be6 {[%clk 0:02:16]} 11. Nc4 {[%clk 0:02:50]}  b5 {[%clk 0:01:58]} 12. Nxe5 {[%clk 0:02:48]}  Nxe5 {[%clk 0:01:58]} 13. fxe5 {[%clk 0:02:49]}  Qd7 {[%clk 0:01:51]} 14. Bg5 {[%clk 0:02:39]}  Bxe5 {[%clk 0:01:46]} 15. Bf6 {[%clk 0:02:39]}  Bxf6 {[%clk 0:01:45]} 16. Rxf6 {[%clk 0:02:40]}  O-O {[%clk 0:01:30]} 17. Qd2 {[%clk 0:02:40]}  Kg7 {[%clk 0:01:19]} 18. Raf1 {[%clk 0:02:37]}  Rad8 {[%clk 0:01:12]} 19. Nf4 {[%clk 0:02:29]}  Ng8 {[%clk 0:01:01]} 20. Nxe6+ {[%clk 0:02:14]}  fxe6 {[%clk 0:01:00]} 21. Rxf8 {[%clk 0:02:15]}  Rxf8 {[%clk 0:01:00]} 22. Rxf8 {[%clk 0:02:15]}  Kxf8 {[%clk 0:00:59]} 23. Qf4+ {[%clk 0:02:16]}  Kg7 {[%clk 0:00:57]} 24. Bh3 {[%clk 0:02:11]}  Nf6 {[%clk 0:00:50]} 25. Qe5 {[%clk 0:02:10]}  Kf7 {[%clk 0:00:49]} 26. Qxc5 {[%clk 0:02:09]}  h6 {[%clk 0:00:33]} 27. e5 {[%clk 0:01:56]}  Nd5 {[%clk 0:00:32]} 28. Bg2 {[%clk 0:01:55]}  Ne3 {[%clk 0:00:29]} 29. Bc6 {[%clk 0:01:51]}  Qc7 {[%clk 0:00:20]} 30. Be8+ {[%clk 0:01:49]}  Kg7 {[%clk 0:00:20]} 31. Qxc7+ {[%clk 0:01:50]} 1-0


[Site "https://www.chess.com"]

[Event "Titled Tuesday Blitz April 18 Late 2023"]
[White "Tarnowska, Aleksandra"]
[Black "Fiorito, Francisco"]
[WhiteFideId "1180967"]
[BlackFideId "180165"]
[WhiteElo "1776"]
[BlackElo "2341"]
[Result "0-1"]
[Round "01"]
[TimeControl "180+2"]
[Date "2023.04.18"]
[WhiteClock "0:00:02"]
[BlackClock "0:00:55"]

1. e4 {[%clk 0:03:00]}  c5 {[%clk 0:02:59]} 2. Nf3 {[%clk 0:03:01]}  Nc6 {[%clk 0:02:59]} 3. Bb5 {[%clk 0:03:01]}  g6 {[%clk 0:02:58]} 4. O-O {[%clk 0:03:01]}  Bg7 {[%clk 0:02:58]} 5. c3 {[%clk 0:03:01]}  Nf6 {[%clk 0:02:57]} 6. e5 {[%clk 0:02:59]}  Nd5 {[%clk 0:02:57]} 7. d4 {[%clk 0:02:51]}  cxd4 {[%clk 0:02:52]} 8. cxd4 {[%clk 0:02:51]}  O-O {[%clk 0:02:52]} 9. Bc4 {[%clk 0:02:49]}  Nb6 {[%clk 0:02:52]} 10. Bb3 {[%clk 0:02:49]}  d5 {[%clk 0:02:52]} 11. Nc3 {[%clk 0:02:45]}  Bg4 {[%clk 0:02:51]} 12. Be3 {[%clk 0:02:43]}  Rc8 {[%clk 0:02:51]} 13. h3 {[%clk 0:02:40]}  Bxf3 {[%clk 0:02:51]} 14. Qxf3 {[%clk 0:02:40]}  e6 {[%clk 0:02:52]} 15. Nb5 {[%clk 0:02:31]}  a6 {[%clk 0:02:45]} 16. Nd6 {[%clk 0:02:26]}  Rc7 {[%clk 0:02:45]} 17. Rac1 {[%clk 0:02:24]}  f6 {[%clk 0:02:44]} 18. Nxb7 {[%clk 0:02:15]}  Rxb7 {[%clk 0:02:43]} 19. Rxc6 {[%clk 0:02:15]}  fxe5 {[%clk 0:02:42]} 20. Qg4 {[%clk 0:02:14]}  exd4 {[%clk 0:02:39]} 21. Qxe6+ {[%clk 0:01:53]}  Kh8 {[%clk 0:02:35]} 22. Rd6 {[%clk 0:01:30]}  Qb8 {[%clk 0:02:10]} 23. Bg5 {[%clk 0:00:58]}  Re8 {[%clk 0:02:08]} 24. Rxb6 {[%clk 0:00:37]}  Rxb6 {[%clk 0:02:02]} 25. Qxd5 {[%clk 0:00:35]}  Re5 {[%clk 0:01:57]} 26. Bf4 {[%clk 0:00:22]}  Rxd5 {[%clk 0:01:54]} 27. Bxb8 {[%clk 0:00:23]}  Rd7 {[%clk 0:01:49]} 28. Bf4 {[%clk 0:00:20]}  d3 {[%clk 0:01:48]} 29. Re1 {[%clk 0:00:17]}  Bxb2 {[%clk 0:01:42]} 30. Bh6 {[%clk 0:00:03]}  Rb8 {[%clk 0:01:38]} 31. Rd1 {[%clk 0:00:03]}  Bg7 {[%clk 0:01:38]} 32. Bg5 {[%clk 0:00:03]}  h6 {[%clk 0:01:35]} 33. Bf4 {[%clk 0:00:03]}  Rf8 {[%clk 0:01:35]} 34. g3 {[%clk 0:00:04]}  g5 {[%clk 0:01:35]} 35. Be3 {[%clk 0:00:04]}  Kh7 {[%clk 0:01:33]} 36. Bc4 {[%clk 0:00:05]}  Rfd8 {[%clk 0:01:33]} 37. Bxa6 {[%clk 0:00:05]}  Rd6 {[%clk 0:01:32]} 38. Bc4 {[%clk 0:00:05]}  Bc3 {[%clk 0:01:32]} 39. Bb3 {[%clk 0:00:04]}  d2 {[%clk 0:01:32]} 40. Kg2 {[%clk 0:00:04]}  Rf6 {[%clk 0:01:30]} 41. Bc2+ {[%clk 0:00:04]}  Kg7 {[%clk 0:01:30]} 42. h4 {[%clk 0:00:04]}  gxh4 {[%clk 0:01:29]} 43. gxh4 {[%clk 0:00:05]}  Rd7 {[%clk 0:01:30]} 44. Kh3 {[%clk 0:00:05]}  Rf3+ {[%clk 0:01:30]} 45. Kh2 {[%clk 0:00:05]}  Re7 {[%clk 0:01:27]} 46. Rg1+ {[%clk 0:00:06]}  Kh8 {[%clk 0:01:20]} 47. Rg6 {[%clk 0:00:03]}  Rfxe3 {[%clk 0:01:14]} 48. fxe3 {[%clk 0:00:03]}  Rxe3 {[%clk 0:01:15]} 49. Rxh6+ {[%clk 0:00:03]}  Kg7 {[%clk 0:01:16]} 50. Rd6 {[%clk 0:00:03]}  Kf7 {[%clk 0:01:17]} 51. Rd3 {[%clk 0:00:03]}  Be5+ {[%clk 0:01:16]} 52. Kg1 {[%clk 0:00:03]}  Re1+ {[%clk 0:01:17]} 53. Kf2 {[%clk 0:00:03]}  Bf4 {[%clk 0:01:17]} 54. Bb3+ {[%clk 0:00:03]}  Kf6 {[%clk 0:01:16]} 55. Kf3 {[%clk 0:00:03]}  Bh6 {[%clk 0:01:08]} 56. Rd6+ {[%clk 0:00:03]}  Kg7 {[%clk 0:01:09]} 57. Rd3 {[%clk 0:00:03]}  Rh1 {[%clk 0:01:07]} 58. Kg4 {[%clk 0:00:03]}  Rf1 {[%clk 0:01:04]} 59. Rd7+ {[%clk 0:00:02]}  Kf8 {[%clk 0:01:03]} 60. Rd8+ {[%clk 0:00:02]}  Ke7 {[%clk 0:01:03]} 61. Rd5 {[%clk 0:00:03]}  Be3 {[%clk 0:01:00]} 62. h5 {[%clk 0:00:03]}  Kf6 {[%clk 0:00:58]} 63. Rd6+ {[%clk 0:00:03]}  Kg7 {[%clk 0:00:58]} 64. Rd8 {[%clk 0:00:03]}  Rg1+ {[%clk 0:00:58]} 65. Kf3 {[%clk 0:00:03]}  Bg5 {[%clk 0:00:57]} 66. Rd7+ {[%clk 0:00:03]}  Kh6 {[%clk 0:00:55]} 67. Rd8 {[%clk 0:00:02]}  Bxd8 {[%clk 0:00:55]} 0-1


[Site "https://www.chess.com"]

[Event "Titled Tuesday Blitz April 18 Late 2023"]
[White "Bilan, Danila"]
[Black "Vargas Rodriguez, Wilver"]
[WhiteFideId "24161918"]
[BlackFideId "3509672"]
[WhiteElo "2182"]
[BlackElo "2224"]
[Result "1-0"]
[Round "01"]
[TimeControl "180+2"]
[Date "2023.04.18"]
[WhiteClock "0:00:36"]
[BlackClock "0:00:02"]

1. d4 {[%clk 0:02:57]}  e6 {[%clk 0:02:53]} 2. Nf3 {[%clk 0:02:56]}  f5 {[%clk 0:02:49]} 3. g3 {[%clk 0:02:56]}  Nf6 {[%clk 0:02:48]} 4. Bg2 {[%clk 0:02:57]}  d5 {[%clk 0:02:44]} 5. c4 {[%clk 0:02:56]}  c6 {[%clk 0:02:43]} 6. Nc3 {[%clk 0:02:55]}  Be7 {[%clk 0:02:40]} 7. O-O {[%clk 0:02:54]}  O-O {[%clk 0:02:40]} 8. Bf4 {[%clk 0:02:53]}  Bd7 {[%clk 0:02:29]} 9. Ne5 {[%clk 0:02:52]}  Be8 {[%clk 0:02:29]} 10. Qc2 {[%clk 0:02:37]}  Nbd7 {[%clk 0:02:11]} 11. cxd5 {[%clk 0:02:29]}  Nxe5 {[%clk 0:01:46]} 12. d6 {[%clk 0:02:03]}  Ng6 {[%clk 0:00:14]} 13. dxe7 {[%clk 0:02:02]}  Qxe7 {[%clk 0:00:15]} 14. Bg5 {[%clk 0:01:57]}  Rd8 {[%clk 0:00:14]} 15. Rad1 {[%clk 0:01:53]}  h6 {[%clk 0:00:13]} 16. Bc1 {[%clk 0:01:50]}  Bf7 {[%clk 0:00:13]} 17. e4 {[%clk 0:01:28]}  Nxe4 {[%clk 0:00:09]} 18. Nxe4 {[%clk 0:01:29]}  fxe4 {[%clk 0:00:07]} 19. Bxe4 {[%clk 0:01:30]}  Qf6 {[%clk 0:00:07]} 20. b3 {[%clk 0:01:04]}  Ne7 {[%clk 0:00:07]} 21. Ba3 {[%clk 0:00:52]}  Rd7 {[%clk 0:00:06]} 22. Qc5 {[%clk 0:00:43]}  Rfd8 {[%clk 0:00:06]} 23. Qxa7 {[%clk 0:00:41]}  Nd5 {[%clk 0:00:02]} 24. Qc5 {[%clk 0:00:36]} 1-0


[Site "https://www.chess.com"]

[Event "Titled Tuesday Blitz April 18 Late 2023"]
[White "Oliveira, Tiago Batista"]
[Black "Cremisi, Daniel"]
[WhiteFideId "2108291"]
[BlackFideId "2089882"]
[WhiteElo "1962"]
[BlackElo "2172"]
[Result "0-1"]
[Round "01"]
[TimeControl "180+2"]
[Date "2023.04.18"]
[WhiteClock "0:00:53"]
[BlackClock "0:02:33"]

1. d4 {[%clk 0:02:56]}  Nf6 {[%clk 0:02:57]} 2. c4 {[%clk 0:02:55]}  g6 {[%clk 0:02:57]} 3. Nc3 {[%clk 0:02:46]}  d5 {[%clk 0:02:57]} 4. cxd5 {[%clk 0:02:46]}  Nxd5 {[%clk 0:02:58]} 5. e4 {[%clk 0:02:44]}  Nxc3 {[%clk 0:02:58]} 6. bxc3 {[%clk 0:02:44]}  Bg7 {[%clk 0:02:59]} 7. Be3 {[%clk 0:02:43]}  c5 {[%clk 0:02:59]} 8. Rc1 {[%clk 0:02:38]}  Qa5 {[%clk 0:02:58]} 9. Qd2 {[%clk 0:02:34]}  O-O {[%clk 0:02:57]} 10. d5 {[%clk 0:02:33]}  e6 {[%clk 0:02:55]} 11. c4 {[%clk 0:02:33]}  Qxd2+ {[%clk 0:02:52]} 12. Kxd2 {[%clk 0:02:32]}  exd5 {[%clk 0:02:51]} 13. cxd5 {[%clk 0:02:22]}  b6 {[%clk 0:02:48]} 14. f4 {[%clk 0:01:48]}  Bb7 {[%clk 0:02:46]} 15. Bc4 {[%clk 0:01:40]}  Re8 {[%clk 0:02:46]} 16. e5 {[%clk 0:01:37]}  Bxd5 {[%clk 0:02:41]} 17. Bxd5 {[%clk 0:01:32]}  Rd8 {[%clk 0:02:41]} 18. Nf3 {[%clk 0:01:23]}  Rxd5+ {[%clk 0:02:39]} 19. Ke2 {[%clk 0:01:22]}  Nc6 {[%clk 0:02:39]} 20. a3 {[%clk 0:01:12]}  Rad8 {[%clk 0:02:39]} 21. Rc3 {[%clk 0:01:03]}  f6 {[%clk 0:02:38]} 22. exf6 {[%clk 0:00:58]}  Bxf6 {[%clk 0:02:37]} 23. Rb3 {[%clk 0:00:58]}  c4 {[%clk 0:02:37]} 24. Rbb1 {[%clk 0:00:55]}  Rd3 {[%clk 0:02:35]} 25. Rhc1 {[%clk 0:00:53]}  Re8 {[%clk 0:02:33]} 0-1


[Site "https://www.chess.com"]

[Event "Titled Tuesday Blitz April 18 Late 2023"]
[White "tufferguy"]
[Black "Barria Santos, Jose Guilherme"]
[BlackFideId "1939300"]
[WhiteElo "2550"]
[BlackElo "2266"]
[Result "1-0"]
[Round "01"]
[TimeControl "180+2"]
[Date "2023.04.18"]
[WhiteClock "0:01:55"]
[BlackClock "0:01:22"]

1. b3 {[%clk 0:02:59]}  e5 {[%clk 0:02:57]} 2. Bb2 {[%clk 0:03:00]}  Nc6 {[%clk 0:02:56]} 3. e3 {[%clk 0:03:00]}  d5 {[%clk 0:02:56]} 4. Bb5 {[%clk 0:03:00]}  Bd6 {[%clk 0:02:56]} 5. Nf3 {[%clk 0:02:54]}  Qe7 {[%clk 0:02:47]} 6. d4 {[%clk 0:02:51]}  e4 {[%clk 0:02:28]} 7. Ne5 {[%clk 0:02:48]}  Bd7 {[%clk 0:02:28]} 8. Nxd7 {[%clk 0:02:46]}  Qxd7 {[%clk 0:02:28]} 9. c4 {[%clk 0:02:46]}  a6 {[%clk 0:02:26]} 10. Ba4 {[%clk 0:02:42]}  Nf6 {[%clk 0:02:09]} 11. Nc3 {[%clk 0:02:38]}  Bb4 {[%clk 0:01:56]} 12. O-O {[%clk 0:02:32]}  Bxc3 {[%clk 0:01:56]} 13. Bxc3 {[%clk 0:02:33]}  O-O {[%clk 0:01:56]} 14. Rc1 {[%clk 0:02:28]}  Rab8 {[%clk 0:01:53]} 15. Bxc6 {[%clk 0:02:26]}  bxc6 {[%clk 0:01:53]} 16. Ba5 {[%clk 0:02:22]}  Qd6 {[%clk 0:01:50]} 17. Qd2 {[%clk 0:02:21]}  Nd7 {[%clk 0:01:48]} 18. cxd5 {[%clk 0:02:19]}  Qxd5 {[%clk 0:01:42]} 19. Bxc7 {[%clk 0:02:18]}  Rbc8 {[%clk 0:01:36]} 20. Bg3 {[%clk 0:02:18]}  f5 {[%clk 0:01:36]} 21. Qc2 {[%clk 0:02:17]}  g5 {[%clk 0:01:33]} 22. Be5 {[%clk 0:02:08]}  Nxe5 {[%clk 0:01:31]} 23. dxe5 {[%clk 0:02:09]}  Qxe5 {[%clk 0:01:31]} 24. Qc4+ {[%clk 0:02:09]}  Kh8 {[%clk 0:01:28]} 25. Rfd1 {[%clk 0:02:05]}  Rfd8 {[%clk 0:01:23]} 26. Rxd8+ {[%clk 0:02:02]}  Rxd8 {[%clk 0:01:24]} 27. Qxc6 {[%clk 0:02:01]}  Qb2 {[%clk 0:01:24]} 28. h3 {[%clk 0:01:56]}  Qxa2 {[%clk 0:01:22]} 29. Qf6+ {[%clk 0:01:55]} 1-0


[Site "https://www.chess.com"]

[Event "Titled Tuesday Blitz April 18 Late 2023"]
[White "Mihajlovskij"]
[Black "Sanchez Alvares, Kelvin Antonio"]
[BlackFideId "3906680"]
[WhiteElo "2121"]
[BlackElo "2217"]
[Result "0-1"]
[Round "01"]
[TimeControl "180+2"]
[Date "2023.04.18"]
[WhiteClock "0:00:11"]
[BlackClock "0:00:16"]

1. e4 {[%clk 0:03:00]}  e5 {[%clk 0:02:59]} 2. d4 {[%clk 0:03:00]}  exd4 {[%clk 0:02:57]} 3. Qxd4 {[%clk 0:03:01]}  Nc6 {[%clk 0:02:57]} 4. Qe3 {[%clk 0:03:01]}  Nf6 {[%clk 0:02:57]} 5. Be2 {[%clk 0:03:01]}  Bb4+ {[%clk 0:02:56]} 6. c3 {[%clk 0:03:02]}  Ba5 {[%clk 0:02:56]} 7. e5 {[%clk 0:03:02]}  Bb6 {[%clk 0:02:54]} 8. Qg3 {[%clk 0:03:03]}  Ne4 {[%clk 0:02:46]} 9. Qxg7 {[%clk 0:03:03]}  Bxf2+ {[%clk 0:02:36]} 10. Kf1 {[%clk 0:03:02]}  Rf8 {[%clk 0:02:34]} 11. Bh6 {[%clk 0:03:02]}  Bc5 {[%clk 0:02:34]} 12. b4 {[%clk 0:02:49]}  Be7 {[%clk 0:02:21]} 13. Bf3 {[%clk 0:02:37]}  d5 {[%clk 0:02:20]} 14. Qxh7 {[%clk 0:02:26]}  Ng5 {[%clk 0:02:17]} 15. Qc2 {[%clk 0:02:26]}  Rh8 {[%clk 0:02:11]} 16. Bxg5 {[%clk 0:02:21]}  Bxg5 {[%clk 0:02:11]} 17. Nd2 {[%clk 0:02:07]}  Be6 {[%clk 0:01:55]} 18. Re1 {[%clk 0:02:05]}  Bf4 {[%clk 0:01:51]} 19. g3 {[%clk 0:01:58]}  Bh6 {[%clk 0:01:38]} 20. a4 {[%clk 0:01:54]}  Qg5 {[%clk 0:01:36]} 21. Re2 {[%clk 0:01:48]}  Nxe5 {[%clk 0:01:35]} 22. Bg2 {[%clk 0:01:46]}  O-O-O {[%clk 0:01:32]} 23. Ngf3 {[%clk 0:01:46]}  Nxf3 {[%clk 0:01:32]} 24. Nxf3 {[%clk 0:01:46]}  Qf6 {[%clk 0:01:30]} 25. Kf2 {[%clk 0:01:42]}  Bf5 {[%clk 0:01:27]} 26. Qd1 {[%clk 0:01:36]}  Be4 {[%clk 0:01:27]} 27. Qd4 {[%clk 0:01:34]}  Bg7 {[%clk 0:01:19]} 28. Qxa7 {[%clk 0:01:25]}  Qxc3 {[%clk 0:01:11]} 29. Rhe1 {[%clk 0:00:44]}  Rxh2 {[%clk 0:00:59]} 30. Rxe4 {[%clk 0:00:36]}  Rxg2+ {[%clk 0:00:25]} 31. Kxg2 {[%clk 0:00:34]}  dxe4 {[%clk 0:00:26]} 32. Qa8+ {[%clk 0:00:34]}  Kd7 {[%clk 0:00:25]} 33. Rd1+ {[%clk 0:00:28]}  Kc6 {[%clk 0:00:19]} 34. b5+ {[%clk 0:00:18]}  Kb6 {[%clk 0:00:19]} 35. a5+ {[%clk 0:00:10]}  Qxa5 {[%clk 0:00:19]} 36. Qxd8 {[%clk 0:00:10]}  exf3+ {[%clk 0:00:19]} 37. Kxf3 {[%clk 0:00:10]}  Qc3+ {[%clk 0:00:19]} 38. Rd3 {[%clk 0:00:10]}  Qf6+ {[%clk 0:00:19]} 39. Kg2 {[%clk 0:00:10]}  Qe6 {[%clk 0:00:19]} 40. Rd2 {[%clk 0:00:06]}  Be5 {[%clk 0:00:19]} 41. Qd3 {[%clk 0:00:06]}  Bd6 {[%clk 0:00:18]} 42. Re2 {[%clk 0:00:06]}  Qf6 {[%clk 0:00:17]} 43. Qe3+ {[%clk 0:00:07]}  Kxb5 {[%clk 0:00:16]} 44. Qe8+ {[%clk 0:00:07]}  Kb6 {[%clk 0:00:15]} 45. Qe4 {[%clk 0:00:05]}  Qc3 {[%clk 0:00:15]} 46. Re3 {[%clk 0:00:05]}  Qc6 {[%clk 0:00:15]} 47. Qxc6+ {[%clk 0:00:04]}  Kxc6 {[%clk 0:00:15]} 48. Kf3 {[%clk 0:00:05]}  b5 {[%clk 0:00:15]} 49. g4 {[%clk 0:00:05]}  Kd5 {[%clk 0:00:16]} 50. Rd3+ {[%clk 0:00:06]}  Kc4 {[%clk 0:00:16]} 51. Re3 {[%clk 0:00:07]}  b4 {[%clk 0:00:16]} 52. Ke4 {[%clk 0:00:07]}  b3 {[%clk 0:00:16]} 53. Re2 {[%clk 0:00:06]}  f6 {[%clk 0:00:15]} 54. Kf5 {[%clk 0:00:06]}  Be5 {[%clk 0:00:15]} 55. g5 {[%clk 0:00:07]}  fxg5 {[%clk 0:00:15]} 56. Rxe5 {[%clk 0:00:07]}  b2 {[%clk 0:00:14]} 57. Re1 {[%clk 0:00:07]}  Kb3 {[%clk 0:00:14]} 58. Kxg5 {[%clk 0:00:08]}  c5 {[%clk 0:00:15]} 59. Kf4 {[%clk 0:00:08]}  c4 {[%clk 0:00:16]} 60. Ke3 {[%clk 0:00:08]}  c3 {[%clk 0:00:16]} 61. Kd3 {[%clk 0:00:08]}  c2 {[%clk 0:00:17]} 62. Re8 {[%clk 0:00:09]}  b1=Q {[%clk 0:00:15]} 63. Rb8+ {[%clk 0:00:09]}  Ka2 {[%clk 0:00:15]} 64. Ra8+ {[%clk 0:00:10]}  Kb2 {[%clk 0:00:15]} 65. Rb8+ {[%clk 0:00:11]}  Kc1 {[%clk 0:00:16]} 66. Rxb1+ {[%clk 0:00:11]}  cxb1=Q+ {[%clk 0:00:16]} 0-1


[Site "https://www.chess.com"]